bitfinex-derivatives/quotes_ETHF0:USTF0_20240924
["timestamp","ask_amount","ask_price","bid_price","bid_amount"]
[1727182519243,0.94857,2635.7,2635.2,5.14680642]
[1727182519244,0.37946,2635.4,2635.2,5.14680642]
[1727182519450,0.37946,2635.4,2635.2,0.74608]
[1727182519644,0.37946,2635.5,2635.2,0.3666]
[1727182519849,0.37946,2635.5,2635.3,0.37948]
[1727182520154,0.37947,2635.4,2635.2,0.74609]
[1727182520457,0.37946,2635.5,2635.3,0.37947]
[1727182520647,0.37946,2635.5,2635.2,0.3666]
[1727182520648,0.9486,2635.6,2635.2,0.74608]
[1727182520947,0.37947,2635.4,2635.2,0.74608]
[1727182521250,0.9486,2635.6,2635.3,0.37947]
[1727182521251,0.37945,2635.5,2635.3,0.37947]
[1727182521756,0.37945,2635.5,2635.4,0.37946]
[1727182521944,6.82633,2635.8,2635.4,0.37946]
[1727182521945,0.37944,2635.6,2635.4,0.37946]
[1727182522139,0.37944,2635.6,2635.5,0.398]
[1727182522447,0.37945,2635.5,2635.3,0.37947]
[1727182522645,0.37945,2635.5,2635.3,4.99951352]
[1727182523446,0.37945,2635.6,2635.3,4.99951352]
[1727182523654,0.37945,2635.5,2635.3,4.99951352]
[1727182523845,0.37945,2635.5,2635.3,4.62004352]
[1727182524044,0.37945,2635.5,2635.3,4.99951352]
[1727182525050,0.37944,2635.6,2635.4,0.37946]
[1727182526452,0.37945,2635.5,2635.3,4.99951352]
[1727182526848,0.37944,2635.6,2635.4,0.37946]
[1727182527250,0.37945,2635.5,2635.3,4.99951352]
[1727182527554,0.37944,2635.6,2635.4,0.37946]
[1727182528245,0.37945,2635.5,2635.3,0.75097]
[1727182529255,0.94858,2635.7,2635.3,0.75097]
[1727182529450,0.37944,2635.6,2635.4,0.37946]
[1727182530049,0.37944,2635.6,2635.3,0.75097]
[1727182530245,0.94858,2635.7,2635.3,0.3715]
[1727182530477,0.37943,2635.6,2635.3,0.3715]
[1727182530759,0.37945,2635.5,2635.3,0.75097]
[1727182531549,0.37944,2635.6,2635.4,0.37946]
[1727182532746,0.37944,2635.6,2635.3,0.75097]
[1727182533654,0.37944,2635.6,2635.4,0.37946]
[1727182534063,0.37945,2635.5,2635.3,0.75097]
[1727182534462,0.37944,2635.6,2635.4,0.37946]
[1727182534659,0.37945,2635.5,2635.3,0.75097]
[1727182534854,6.37594164,2635.8,2635.3,0.75097]
[1727182535057,0.37945,2635.6,2635.4,0.3673]
[1727182535254,0.37945,2635.6,2635.4,0.74676]
[1727182536957,0.37945,2635.5,2635.4,0.3673]
[1727182538262,0.37945,2635.5,2635.4,0.74676]
[1727182538964,0.37945,2635.5,2635.4,0.3673]
[1727182539353,0.37945,2635.5,2635.4,0.74676]
[1727182539661,0.37944,2635.6,2635.4,0.74676]
[1727182539962,0.37945,2635.5,2635.4,0.74676]
[1727182540164,0.37944,2635.6,2635.4,0.74676]
[1727182540567,0.37945,2635.5,2635.4,0.74676]
[1727182540766,0.37945,2635.5,2635.4,0.3673]
[1727182540962,5.38643,2635.5,2635.2,0.3666]
[1727182541268,0.37948,2635.3,2635.2,0.74609]
[1727182541456,0.37948,2635.3,2635.2,0.3666]
[1727182543370,6.98961164,2635.3,2635.1,0.99327033]
[1727182543565,13.26820005,2635.2,2634.1,0.47246873]
[1727182543866,0.99170229,2634.3,2634.2,0.37964]
[1727182544169,0.99170229,2634.4,2634.2,5.87430912]
[1727182544469,0.99170229,2634.5,2634.2,4.39687924]
[1727182544769,0.99170229,2634.4,2634.2,4.39687924]
[1727182545269,1.48755344,2634.5,2634.3,5.57107665]
[1727182545573,1.48755344,2634.5,2634.4,5.57107665]
[1727182546266,0.37959,2634.5,2634.4,5.57107665]
[1727182546572,6.30494344,2634.6,2634.4,5.57107665]
[1727182546769,6.30494344,2634.6,2634.5,5.57107665]
[1727182546960,6.49484767,2634.6,2634.5,5.57107665]
[1727182547357,6.49484557,2634.6,2634.5,5.57107665]
[1727182549968,6.49485177,2634.6,2634.5,5.57107665]
[1727182550169,6.49484647,2634.6,2634.5,5.57107665]
[1727182550371,6.30494344,2634.6,2634.5,5.57107665]
[1727182550968,0.3796,2634.5,2634.1,0.7679]
[1727182551168,3.2078,2634.2,2634.1,0.7679]
[1727182551559,3.2078,2634.2,2634.1,6.33897665]
[1727182551765,1.37023345,2634.4,2634.1,6.33897665]
[1727182551965,1.37023345,2634.4,2634.3,5.57107665]
[1727182551966,0.37962,2634.4,2634.3,5.57107665]
[1727182552161,8.2338,2634.4,2634.0,0.395]
[1727182552367,4.19808123,2634.3,2634.0,0.395]
[1727182552666,4.19808123,2634.3,2633.0,0.18615869]
[1727182552667,3.2078,2634.1,2633.1,0.95010423]
[1727182552864,3.58758,2633.2,2633.1,1.25088665]
[1727182553070,4.4378,2633.2,2632.9,0.59123327]
[1727182553265,4.4378,2633.2,2633.1,1.25088665]
[1727182553578,4.81758,2633.2,2633.1,1.25088665]
[1727182553767,4.4378,2633.2,2633.1,1.25088665]
[1727182554167,4.81758,2633.2,2633.1,1.25088665]
[1727182554369,3.58758,2633.2,2633.1,1.25088665]
[1727182555672,7.03158,2633.2,2633.1,1.25088665]
[1727182556574,7.98104,2633.2,2633.1,1.25088665]
[1727182560477,3.58758,2633.2,2633.1,1.25088665]
[1727182563076,3.2078,2633.2,2633.1,1.25088665]
[1727182563478,3.2078,2633.2,2633.1,1.63067665]
[1727182563677,3.58754,2633.5,2633.3,0.37976]
[1727182563981,3.58754,2633.5,2633.2,0.37977]
[1727182564177,3.58754,2633.5,2632.9,0.3709]
[1727182564382,3.58754,2633.5,2633.4,1.25088665]
[1727182565487,3.2078,2633.5,2633.4,1.25088665]
[1727182565788,6.25754,2633.5,2633.4,1.25088665]
[1727182567684,7.20689,2633.5,2633.4,1.25088665]
[1727182569482,7.20689,2633.5,2632.9,0.3709]
[1727182569483,10.05514,2633.5,2633.1,0.37979]
[1727182569687,3.2078,2633.2,2633.1,0.37979]
[1727182570083,3.2078,2633.2,2633.1,1.63067665]
[1727182571481,3.58758,2633.2,2633.1,1.25088665]
[1727182574076,3.2078,2633.2,2633.1,1.63067665]
[1727182577389,0.37975,2633.4,2633.3,0.37976]
[1727182577891,0.37975,2633.4,2633.3,1.63064665]
[1727182578378,3.2078,2633.5,2633.3,1.25088665]
[1727182578583,3.2078,2633.8,2633.4,4.69213665]
[1727182578788,3.2078,2634.1,2634.0,0.37966]
[1727182579094,0.353,2634.7,2634.5,0.37958]
[1727182579095,0.37957,2634.7,2634.5,0.37958]
[1727182579285,0.37957,2634.7,2634.6,1.25088665]
[1727182579593,0.94895,2634.6,2634.5,1.25088665]
[1727182579778,3.99853,2634.6,2634.5,1.25088665]
[1727182581088,7.0882,2634.8,2634.5,1.25088665]
[1727182581591,0.37958,2634.6,2634.5,1.25088665]
[1727182582095,7.0882,2634.8,2634.7,0.37956]
[1727182582096,3.2078,2634.8,2634.7,0.37956]
[1727182582392,3.2078,2634.8,2634.7,1.25088665]
[1727182582393,3.58735,2634.8,2634.7,1.25088665]
[1727182582589,3.2078,2634.8,2634.7,1.63044665]
[1727182583182,3.58735,2634.8,2634.7,1.63044665]
[1727182584286,3.58735,2634.8,2634.7,1.25088665]
[1727182585483,3.58735,2634.8,2634.7,1.63044665]
[1727182585992,3.58735,2634.8,2634.7,1.25088665]
[1727182586383,3.58735,2634.8,2634.7,1.63044665]
[1727182586584,3.58735,2634.8,2634.7,1.25088665]
[1727182587487,3.2078,2634.8,2634.7,1.63044665]
[1727182591194,3.2078,2635.1,2635.0,0.37951]
[1727182591397,3.2078,2635.1,2635.0,1.63039665]
[1727182592095,3.58731,2635.1,2635.0,1.25088665]
[1727182592791,8.19636123,2635.1,2635.0,1.25088665]
[1727182592992,7.20608,2635.1,2635.0,1.25088665]
[1727182593793,8.19253821,2635.1,2635.0,1.25088665]
[1727182594185,7.20608,2635.1,2635.0,1.25088665]
[1727182595186,8.19231866,2635.1,2635.0,1.25088665]
[1727182596892,0.37956,2634.8,2634.7,0.37956]
[1727182597094,3.58736,2634.8,2634.7,1.63044665]
[1727182597489,3.58736,2634.8,2634.7,1.99454665]
[1727182597893,3.2078,2634.8,2634.7,1.99454665]
[1727182599798,3.58731,2635.1,2635.0,0.37951]
[1727182599991,3.2078,2635.1,2635.0,1.63039665]
[1727182601900,0.37947,2635.4,2635.3,0.37947]
[1727182601901,3.2078,2635.4,2635.3,0.37947]
[1727182602095,3.2078,2635.4,2635.3,1.63035665]
[1727182602503,3.58726,2635.4,2635.3,1.25088665]
[1727182603105,9.6722,2635.4,2635.1,0.3805]
[1727182603402,0.37948,2635.3,2635.2,1.25088665]
[1727182604494,0.75738,2635.3,2635.2,1.25088665]
[1727182605512,0.37952,2635.0,2634.8,0.7705]
[1727182605703,0.37952,2635.0,2634.9,1.25088665]
[1727182605704,0.37953,2635.0,2634.9,1.25088665]
[1727182606401,3.58731,2635.1,2634.9,1.25088665]
[1727182606704,3.58731,2635.1,2634.8,0.7705]
[1727182606705,3.58731,2635.1,2635.0,1.25088665]
[1727182607298,3.58731,2635.1,2635.0,1.63040665]
[1727182607500,3.2078,2635.1,2635.0,1.63040665]
[1727182608004,3.58731,2635.1,2635.0,1.25088665]
[1727182609901,3.58731,2635.1,2635.0,1.63040665]
[1727182610106,3.2078,2635.1,2635.0,1.63040665]
[1727182611403,0.37947,2635.4,2635.3,0.37948]
[1727182611603,0.37947,2635.4,2635.3,1.63036665]
[1727182612610,3.58726,2635.5,2635.3,1.63036665]
[1727182612799,3.58726,2635.5,2635.4,1.63868665]
[1727182612998,3.58726,2635.5,2635.4,1.25088665]
[1727182613200,5.52182255,2635.5,2635.4,1.25088665]
[1727182613399,0.37949,2635.3,2635.0,0.3878]
[1727182613603,0.37949,2635.3,2635.2,1.63037665]
[1727182613812,3.58729,2635.3,2635.2,1.63037665]
[1727182614014,3.2078,2635.3,2635.2,1.63037665]
[1727182615603,3.58728,2635.3,2635.2,1.63037665]
[1727182616125,3.2078,2635.3,2635.2,1.63037665]
[1727182616309,3.58728,2635.3,2635.2,1.25088665]
[1727182616609,3.58728,2635.3,2635.2,1.63037665]
[1727182616803,3.58728,2635.3,2635.2,1.25088665]
[1727182617814,4.53598,2635.3,2635.2,1.25088665]
[1727182618708,3.58728,2635.3,2635.2,1.63037665]
[1727182619020,3.58728,2635.3,2635.2,1.25088665]
[1727182620105,3.2078,2635.3,2635.2,1.25088665]
[1727182620306,3.2078,2635.3,2635.2,1.63037665]
[1727182620721,3.58728,2635.3,2635.2,1.63037665]
[1727182620920,4.19373255,2635.3,2635.2,1.63037665]
[1727182621124,3.2078,2635.3,2635.2,1.63037665]
[1727182621416,4.19373255,2635.3,2635.2,6.2858405]
[1727182622218,4.69535344,2635.3,2635.2,6.2858405]
[1727182623223,4.88518704,2635.3,2635.2,6.2858405]
[1727182623614,4.88518704,2635.3,2635.2,5.9063505]
[1727182623919,3.7771136,2635.3,2635.2,1.64548665]
[1727182624112,5.76051819,2635.3,2635.2,1.64548665]
[1727182624315,3.7771136,2635.3,2635.2,2.02497665]
[1727182625124,5.4474866,2635.3,2635.2,2.02497665]
[1727182625915,5.4474866,2635.3,2635.2,1.64548665]
[1727182626224,8.87544234,2635.3,2635.2,1.64548665]
[1727182626609,7.92674234,2635.3,2635.2,1.64548665]
[1727182626817,8.87544234,2635.3,2635.2,1.64548665]
[1727182627122,8.87544234,2635.3,2635.2,1.25088665]
[1727182627514,7.92674234,2635.3,2635.2,1.63037665]
[1727182627718,7.92674234,2635.3,2635.2,1.25088665]
[1727182628120,7.92674234,2635.3,2635.2,1.63037665]
[1727182629026,3.7771136,2635.3,2635.2,1.63037665]
[1727182630217,0.5693136,2635.3,2635.2,1.63037665]
[1727182630419,1.48758242,2635.3,2635.2,1.63037665]
[1727182630627,1.48758242,2635.4,2635.3,0.37948]
[1727182630830,3.2078,2635.6,2635.4,1.63034665]
[1727182630831,5.57040222,2635.6,2635.4,1.63034665]
[1727182631127,0.56927712,2635.5,2635.3,0.4003]
[1727182631325,5.57039222,2635.6,2635.5,1.25088665]
[1727182631531,5.76021959,2635.6,2635.5,1.25088665]
[1727182633631,5.76021959,2635.6,2635.5,1.63033665]
[1727182633831,5.19096222,2635.6,2635.5,1.63033665]
[1727182634032,5.57039222,2635.6,2635.5,1.63033665]
[1727182634422,5.57039222,2635.6,2635.5,1.25088665]
[1727182635132,7.0058,2635.3,2633.9,3.96653655]
[1727182635332,1.32874,2634.2,2634.1,0.47325505]
[1727182635547,0.37966,2634.0,2633.9,5.5932381]
[1727182635736,4.53663,2634.0,2633.9,3.96653655]
[1727182635939,14.33343,2634.0,2633.9,3.96653655]
[1727182640342,0.37974,2633.6,2633.2,0.37977]
[1727182640542,3.2078,2633.5,2633.2,0.37977]
[1727182640736,3.58754,2633.5,2633.1,0.37978]
[1727182640945,3.58754,2633.5,2633.4,1.62670155]
[1727182644244,3.2078,2633.5,2633.4,1.62670155]
[1727182644652,3.58754,2633.5,2633.4,1.62670155]
[1727182644853,3.2078,2633.5,2633.4,1.62670155]
[1727182647545,3.2078,2633.5,2633.4,1.99080155]
[1727182649344,3.2078,2633.5,2633.4,2.37055155]
[1727182649545,3.2078,2633.8,2633.4,6.1878722]
[1727182649746,3.2078,2633.8,2633.7,2.00641155]
[1727182653760,3.2078,2634.1,2633.9,0.37967]
[1727182654061,3.2078,2634.1,2634.0,0.74466]
[1727182654358,2.67,2634.3,2634.2,0.37964]
[1727182654658,5.8778,2634.3,2634.2,2.00634155]
[1727182655249,3.2078,2634.3,2634.2,1.62670155]
[1727182655456,6.25742,2634.3,2634.2,1.62670155]
[1727182656249,7.20648,2634.3,2634.2,1.62670155]
[1727182658366,3.99868,2634.3,2634.2,1.62670155]
[1727182658556,7.20648,2634.3,2634.2,1.62670155]
[1727182661760,6.25742,2634.3,2634.2,1.62670155]
[1727182661966,0.9491,2634.2,2633.8,0.75429]
[1727182662263,6.25747,2634.0,2633.9,0.37968]
[1727182662665,6.25747,2634.0,2633.9,2.00638155]
[1727182662860,6.25747,2634.0,2633.9,1.62670155]
[1727182663367,6.25747,2634.0,2633.9,2.00638155]
[1727182663665,3.2078,2634.0,2633.9,2.00638155]
[1727182663859,3.2078,2634.3,2634.2,0.37963]
[1727182664052,3.2078,2634.3,2634.2,0.37964]
[1727182664253,3.2078,2634.3,2634.2,2.00634155]
[1727182665065,0.9491,2634.2,2633.8,0.3746]
[1727182665256,3.2078,2633.9,2633.8,0.75429]
[1727182665456,3.2078,2633.9,2633.8,0.3746]
[1727182665658,3.2078,2633.9,2633.8,2.38099155]
[1727182668363,3.58747,2634.0,2633.8,2.38099155]
[1727182668569,3.58747,2634.0,2633.9,1.62670155]
[1727182668874,3.58746,2634.0,2633.9,1.62670155]
[1727182670669,3.58746,2634.0,2633.9,2.00638155]
[1727182671370,3.2078,2634.0,2633.9,2.00638155]
[1727182672466,3.58746,2634.0,2633.9,2.00638155]
[1727182672774,3.2078,2634.0,2633.9,2.00638155]
[1727182673159,3.58746,2634.0,2633.9,1.62670155]
[1727182673360,14.4849666,2634.0,2633.5,0.4001]
[1727182673674,3.04972,2633.6,2633.5,0.4001]
[1727182674060,3.04972,2633.6,2633.5,2.02680155]
[1727182674061,2.67,2633.6,2633.5,2.02680155]
[1727182674261,3.2078,2633.7,2633.6,0.37972]
[1727182674459,3.2078,2633.7,2633.6,2.00642155]
[1727182675564,0.98811435,2633.9,2633.6,1.62670155]
[1727182675869,6.86591435,2634.0,2633.9,1.62670155]
[1727182676074,0.3797,2633.8,2633.5,0.4001]
[1727182676262,0.3797,2633.8,2633.6,1.62670155]
[1727182676263,4.19696937,2633.7,2633.6,1.62670155]
[1727182676571,4.69155406,2633.7,2633.6,1.62670155]
[1727182676978,3.2078,2633.7,2633.6,2.00642155]
[1727182677276,4.19781568,2633.7,2633.6,1.62670155]
[1727182677476,4.88150543,2633.7,2633.6,2.00640155]
[1727182677673,4.88150537,2633.7,2633.6,2.00640155]
[1727182678465,4.88150537,2633.7,2633.6,2.38612155]
[1727182679066,1.67370537,2633.7,2633.6,2.38612155]
[1727182679374,6.25751,2633.7,2633.6,1.62670155]
[1727182679569,6.44747025,2633.7,2633.6,1.62670155]
[1727182679761,8.42129238,2633.7,2633.6,1.62670155]
[1727182680170,10.63550132,2633.7,2633.6,1.62670155]
[1727182681278,8.16822366,2633.7,2633.6,1.62670155]
[1727182682083,11.58478132,2633.7,2633.6,1.62670155]
[1727182682968,10.63550132,2633.7,2633.6,1.62670155]
[1727182683568,7.96550132,2633.7,2633.6,1.62670155]
[1727182683875,3.77747025,2633.7,2633.6,1.62670155]
[1727182684072,5.49783676,2633.7,2633.6,1.62670155]
[1727182684284,10.63511442,2633.7,2633.6,1.62670155]
[1727182684477,8.16783676,2633.7,2633.6,1.62670155]
[1727182685780,10.63114724,2633.7,2633.6,1.62670155]
[1727182686081,8.16386958,2633.7,2633.6,1.62670155]
[1727182686969,10.63114724,2633.7,2633.6,1.62670155]
[1727182687175,8.16386958,2633.7,2633.6,1.62670155]
[1727182688480,6.4474903,2633.7,2633.6,1.62670155]
[1727182689281,10.6308812,2633.7,2633.6,1.62670155]
[1727182689474,8.16360354,2633.7,2633.6,1.62670155]
[1727182689681,10.6308812,2633.7,2633.6,1.62670155]
[1727182690190,7.4230812,2633.7,2633.6,1.62670155]
[1727182690482,8.72478766,2633.7,2633.6,1.62670155]
[1727182690684,10.63085047,2633.7,2633.6,1.62670155]
[1727182691479,11.58013047,2633.7,2633.6,1.62670155]
[1727182694485,5.49357281,2633.7,2633.6,1.62670155]
[1727182694687,5.49357281,2633.7,2633.6,2.00642155]
[1727182694688,5.37946085,2633.7,2633.6,2.00642155]
[1727182694894,4.88415817,2633.7,2633.6,2.00642155]
[1727182695186,0.37963,2634.3,2634.1,0.37965]
[1727182695394,5.67507766,2634.4,2633.7,4.74608]
[1727182695395,3.58741,2634.4,2634.2,0.37964]
[1727182695880,3.2078,2634.4,2633.8,7.66389664]
[1727182696085,0.99112895,2634.1,2633.8,7.66389664]
[1727182696389,0.99112895,2634.2,2634.1,0.37965]
[1727182696783,0.99112895,2634.2,2634.1,4.17565]
[1727182697090,0.99112895,2634.2,2634.1,0.37965]
[1727182698288,0.99087231,2634.2,2634.1,0.37965]
[1727182699488,0.99087231,2634.2,2634.0,0.37965]
[1727182699789,0.99087231,2634.2,2634.0,4.11091784]
[1727182700104,0.99087231,2634.2,2634.1,0.37965]
[1727182702480,0.99087231,2634.2,2634.1,4.17565]
[1727182702697,0.99087231,2634.3,2634.2,0.37964]
[1727182702993,0.99087231,2634.5,2634.3,4.30124777]
[1727182703287,3.58737,2634.7,2634.5,0.37959]
[1727182703288,0.99087231,2634.6,2634.5,0.37959]
[1727182703688,0.99087231,2634.6,2634.5,4.17559]
[1727182704396,0.99087231,2634.8,2634.7,0.37956]
[1727182704790,0.99087231,2634.8,2634.5,4.00359209]
[1727182704791,0.37955,2634.8,2634.6,0.37958]
[1727182705091,1.37041231,2634.9,2634.7,0.37955]
[1727182705797,4.04041231,2634.9,2634.7,0.37955]
[1727182707287,0.37955,2634.8,2634.6,0.37957]
[1727182707483,0.37955,2634.8,2634.5,4.00359209]
[1727182707895,0.37955,2634.8,2634.6,0.37958]
[1727182709093,5.8778,2634.9,2634.5,4.00359209]
[1727182709094,6.25735,2634.9,2634.7,0.37955]
[1727182709400,0.37955,2634.8,2634.7,0.37955]
[1727182709592,6.25735,2634.9,2634.7,0.37955]
[1727182709798,5.8778,2634.9,2634.5,4.00359209]
[1727182709993,6.25734,2634.9,2634.7,0.37955]
[1727182710400,3.2078,2634.9,2634.8,0.37955]
[1727182710789,1.37039231,2635.1,2634.9,0.37953]
[1727182711097,0.37952,2635.1,2635.0,0.7624]
[1727182711508,1.37039231,2635.1,2635.0,0.7624]
[1727182712101,0.37952,2635.1,2635.0,0.7624]
[1727182712405,1.3683779,2635.1,2635.0,0.7624]
[1727182714295,2.3171479,2635.1,2635.0,0.7624]
[1727182715208,2.3171479,2635.1,2635.0,0.3719]
[1727182716309,0.94881,2635.0,2634.5,0.39]
[1727182716611,0.94881,2635.0,2634.6,0.7493]
[1727182716612,3.2078,2634.9,2634.6,0.7493]
[1727182716812,3.2078,2634.9,2634.6,5.32795592]
[1727182717106,0.37956,2634.7,2634.6,5.32795592]
[1727182717302,0.37956,2634.8,2634.7,0.37956]
[1727182717701,0.37956,2634.8,2634.7,4.17476]
[1727182718499,3.58735,2634.9,2634.7,4.17476]
[1727182718702,3.58735,2634.9,2634.7,0.37956]
[1727182718905,0.37955,2634.8,2634.7,0.37956]
[1727182719302,3.2078,2634.9,2634.8,0.37955]
[1727182719303,3.58734,2634.9,2634.8,0.37955]
[1727182719501,0.37955,2634.8,2634.7,0.37956]
[1727182719804,0.94892,2634.7,2633.6,4.19616392]
[1727182720102,5.8778,2634.3,2634.0,0.3822]
[1727182720306,0.37964,2634.2,2634.0,0.3822]
[1727182720806,5.8778,2634.3,2634.0,0.3822]
[1727182720807,3.2078,2634.3,2634.0,0.3822]
[1727182721005,0.3796,2634.5,2634.1,4.60048248]
[1727182721200,3.58738,2634.6,2634.2,0.3717]
[1727182721396,3.58738,2634.6,2634.2,0.75133]
[1727182721909,3.58739,2634.6,2634.2,0.75133]
[1727182723404,0.3796,2634.5,2634.2,0.3717]
[1727182724303,3.58742,2634.3,2634.2,0.3717]
[1727182724505,3.58742,2634.3,2634.0,0.3822]
[1727182724712,3.58742,2634.3,2634.0,0.7596]
[1727182726207,3.58742,2634.3,2634.0,1.13926]
[1727182726409,2.67,2634.1,2633.3,0.98836392]
[1727182726609,2.67,2634.1,2632.9,1.97706254]
[1727182726610,3.2078,2633.4,2632.9,0.47414809]
[1727182726905,0.37983,2632.9,2632.7,0.7662]
[1727182727104,0.37984,2632.8,2632.7,0.3828]
[1727182727811,3.58762,2633.0,2632.7,0.3828]
[1727182728015,0.37984,2632.9,2632.7,0.3828]
[1727182729016,0.37986,2632.7,2632.3,0.7633]
[1727182729219,3.2078,2632.6,2632.4,0.37989]
[1727182729511,0.37986,2632.7,2632.5,4.2433662]
[1727182729711,0.37986,2632.7,2632.4,4.2433662]
[1727182729908,0.37986,2632.7,2632.4,0.37989]
[1727182730114,0.37987,2632.6,2632.4,4.15809691]
[1727182730321,0.37986,2632.7,2632.4,4.53798691]
[1727182731921,0.37987,2632.6,2632.4,4.53798691]
[1727182732121,0.37986,2632.7,2632.4,4.53798691]
[1727182732422,5.8778,2632.9,2632.4,4.53798691]
[1727182732808,5.8778,2632.9,2632.5,0.37987]
[1727182732809,3.2078,2632.9,2632.5,0.37987]
[1727182733013,3.2078,2632.9,2632.4,4.15809691]
[1727182733014,0.37986,2632.7,2632.4,4.15809691]
[1727182733212,0.37986,2632.7,2632.6,4.19470022]
[1727182733419,0.37986,2632.7,2632.4,4.57459022]
[1727182733608,5.8778,2632.9,2632.4,4.57459022]
[1727182733808,0.37986,2632.7,2632.3,0.3834]
[1727182734220,0.37986,2632.7,2632.4,4.24948509]
[1727182734415,0.37986,2632.7,2632.5,0.37988]
[1727182735917,0.37985,2632.8,2632.6,0.37987]
[1727182736125,0.37986,2632.7,2632.5,0.37988]
[1727182737324,0.3997,2633.3,2632.5,0.37988]
[1727182737325,3.2078,2633.6,2632.6,14.85994832]
[1727182737629,0.088,2634.0,2633.8,0.37969]
[1727182737828,0.37966,2634.0,2633.5,3.45]
[1727182738015,0.37966,2634.0,2633.8,0.37969]
[1727182738227,3.42566,2634.1,2633.8,0.37969]
[1727182738524,3.046,2634.1,2633.9,0.37967]
[1727182738717,3.42566,2634.1,2633.8,0.37968]
[1727182738923,3.42566,2634.1,2633.8,0.37969]
[1727182739125,3.046,2634.1,2633.8,0.37969]
[1727182739325,0.37967,2634.0,2633.8,0.37969]
[1727182739521,3.42566,2634.1,2633.8,0.37969]
[1727182739824,3.046,2634.1,2633.6,3.45]
[1727182740028,3.2078,2634.2,2633.6,3.45]
[1727182740320,3.58744,2634.2,2633.9,0.37967]
[1727182740525,3.2078,2634.2,2634.0,0.37966]
[1727182740715,3.04963,2634.3,2633.7,4.043929]
[1727182740716,2.67,2634.3,2633.7,4.043929]
[1727182741127,0.37963,2634.3,2634.0,0.37966]
[1727182741933,0.37961,2634.4,2634.1,0.37964]
[1727182742122,6.6223,2634.5,2634.2,0.37963]
[1727182742420,0.37961,2634.4,2634.1,0.37964]
[1727182742826,6.2427,2634.5,2633.8,0.94924]
[1727182743028,3.2078,2634.6,2634.0,2.67]
[1727182743333,3.58738,2634.6,2634.3,0.37961]
[1727182745521,3.58738,2634.6,2634.1,4.99003294]
[1727182745522,3.2078,2634.6,2634.1,4.99003294]
[1727182745726,3.2078,2634.6,2634.3,0.37961]
[1727182746625,3.2078,2634.6,2634.1,4.99003294]
[1727182746828,9.37332381,2634.8,2634.5,0.37959]
[1727182747227,5.29132381,2634.8,2634.5,0.37959]
[1727182747530,5.29132381,2634.8,2634.2,3.449]
[1727182747531,4.91176381,2634.8,2634.2,3.449]
[1727182747722,5.29132381,2634.8,2634.2,3.449]
[1727182748023,4.91176381,2634.8,2634.3,3.96670108]
[1727182748331,5.29132381,2634.8,2634.3,3.96670108]
[1727182748831,5.29132381,2634.8,2634.5,0.37959]
[1727182749018,0.37956,2634.7,2634.4,0.3796]
[1727182749225,4.91176381,2634.8,2634.4,0.3796]
[1727182749523,5.29132381,2634.8,2634.5,0.37959]
[1727182750125,5.29132381,2634.8,2634.4,0.37961]
[1727182750126,0.37957,2634.7,2634.4,0.37961]
[1727182750438,5.29132381,2634.8,2634.5,0.37959]
[1727182752234,0.37957,2634.7,2634.4,0.3796]
[1727182754926,4.91176381,2634.8,2634.3,3.96670108]
[1727182755134,0.37957,2634.7,2634.4,0.3796]
[1727182757039,4.91176381,2634.8,2634.4,0.3796]
[1727182757338,0.37956,2634.7,2634.4,0.3796]
[1727182757529,0.37958,2634.6,2634.4,0.3796]
[1727182758236,4.91176381,2634.8,2634.5,0.37959]
[1727182758237,0.37957,2634.7,2634.5,0.37959]
[1727182760038,4.91176381,2634.8,2634.3,3.96670108]
[1727182760238,3.2078,2634.9,2634.8,0.37955]
[1727182760445,3.2078,2634.9,2634.6,3.61894]
[1727182760446,3.58729,2635.2,2635.0,0.37951]
[1727182760637,3.58729,2635.2,2635.1,0.37951]
[1727182760638,3.2078,2635.2,2635.1,0.37951]
[1727182760846,0.37949,2635.3,2635.1,0.37951]
[1727182761033,0.3956,2635.4,2634.9,2.67]
[1727182761237,0.77507,2635.4,2635.2,0.37948]
[1727182762242,3.2078,2635.5,2635.4,0.37946]
[1727182762632,3.58725,2635.5,2635.4,0.37946]
[1727182762941,3.58725,2635.5,2635.3,0.37947]
[1727182762942,3.58726,2635.5,2635.3,0.37947]
[1727182763241,3.2078,2635.5,2635.4,0.37946]
[1727182763447,3.58725,2635.5,2635.4,0.37946]
[1727182764036,3.58725,2635.5,2635.2,0.3999]
[1727182764542,3.58725,2635.5,2635.4,0.37946]
[1727182764931,3.2078,2635.5,2635.4,0.37946]
[1727182765541,0.77502,2635.8,2635.6,0.37943]
[1727182767445,0.37942,2635.7,2635.6,0.37943]
[1727182769139,3.2078,2635.9,2635.7,0.37942]
[1727182769335,3.2078,2635.8,2635.7,0.37942]
[1727182769636,0.3794,2635.9,2635.8,0.37941]
[1727182770547,0.37941,2635.8,2635.7,0.77091]
[1727182770942,3.58721,2635.8,2635.7,0.77091]
[1727182771245,0.37941,2635.8,2635.7,0.77091]
[1727182771443,0.37946,2635.4,2635.3,0.3702]
[1727182771937,0.37946,2635.5,2635.3,0.3702]
[1727182772143,4.37853,2635.8,2635.3,0.3702]
[1727182772341,0.37945,2635.5,2635.4,0.37945]
[1727182773149,0.37946,2635.4,2635.3,0.74967]
[1727182773643,0.37945,2635.5,2635.4,0.37945]
[1727182774050,0.37946,2635.4,2635.3,0.74967]
[1727182775245,0.37946,2635.4,2635.3,0.3702]
[1727182776550,0.37946,2635.4,2635.3,0.74968]
[1727182776751,4.15634,2635.8,2635.3,0.3702]
[1727182776943,4.15634,2635.8,2635.5,0.37944]
[1727182776944,0.37944,2635.6,2635.5,0.37944]
[1727182777142,0.37944,2635.6,2635.3,7.31284226]
[1727182777143,0.37942,2635.7,2635.6,0.37943]
[1727182777345,0.37944,2635.6,2635.5,0.37944]
[1727182777741,0.37944,2635.6,2635.5,4.40195924]
[1727182783458,0.37944,2635.6,2635.5,4.02251924]
[1727182783655,0.37944,2635.6,2635.5,4.40196924]
[1727182784353,0.37944,2635.6,2635.5,4.02251924]
[1727182785762,0.37944,2635.6,2635.5,4.40196924]